bitfinex/quotes_SOLUSD_20241216
["timestamp","ask_amount","ask_price","bid_price","bid_amount"]
[1734362215045,22.40871931,216.79,216.72,22.40871931]
[1734362215341,22.40871931,216.8,216.73,22.40871931]
[1734362215729,22.40871931,216.79,216.73,22.40871931]
[1734362215930,22.40871931,216.8,216.73,22.40871931]
[1734362216116,36.47123753,216.8,216.74,36.47123753]
[1734362216318,36.47123753,216.8,216.73,36.47123753]
[1734362216627,36.47123753,216.79,216.72,36.47123753]
[1734362216829,36.47123753,216.8,216.74,36.47123753]
[1734362217217,36.47123753,216.8,216.73,36.47123753]
[1734362217418,36.47123753,216.8,216.74,36.47123753]
[1734362217643,36.47123753,216.84,216.77,36.47123753]
[1734362217855,36.47123753,216.82,216.76,36.47123753]
[1734362218018,36.47123753,216.83,216.76,36.47123753]
[1734362218348,36.47123753,216.82,216.76,36.47123753]
[1734362218932,36.47123753,216.84,216.77,36.47123753]
[1734362219520,36.47123753,216.83,216.76,36.47123753]
[1734362219923,36.47123753,216.82,216.75,36.47123753]
[1734362220348,36.45765039,216.84,216.71,6.2546]
[1734362220515,1.5532,216.9,216.74,20.0]
[1734362220715,0.5644748,216.96,216.74,20.69180597]
[1734362220716,36.45765039,216.91,216.74,20.69180597]
[1734362221217,36.45765039,216.92,216.76,136.7]
[1734362221552,36.45765039,216.9,216.76,136.7]
[1734362221843,36.45765039,216.9,216.74,20.0]
[1734362222152,36.45765039,216.86,216.74,20.0]
[1734362222325,36.45765039,216.85,216.71,142.9546]
[1734362222727,36.45765039,216.84,216.71,6.2546]
[1734362223329,36.45765039,216.85,216.71,6.2546]
[1734362223543,36.45765039,216.86,216.72,0.69187969]
[1734362224149,36.45765039,216.85,216.72,0.69187969]
[1734362224465,20.0,216.88,216.71,142.9546]
[1734362224466,36.45765039,216.8,216.71,6.2546]
[1734362224662,23.776884,216.87,216.71,6.2546]
[1734362224663,23.776884,216.83,216.71,6.2546]
[1734362224868,20.0,216.84,216.71,6.2546]
[1734362225434,36.45765039,216.86,216.72,0.69186575]
[1734362225655,36.45765039,216.87,216.72,0.69186575]
[1734362225955,36.45765039,216.87,216.75,20.0]
[1734362226173,23.776884,216.91,216.72,136.7]
[1734362226174,36.45765039,216.84,216.72,136.7]
[1734362226332,36.45765039,216.81,216.71,6.2546]
[1734362226533,36.45765039,216.87,216.72,0.69189695]
[1734362226770,36.45765039,216.89,216.75,1.6441]
[1734362226971,36.45765039,216.88,216.76,0.69176882]
[1734362227672,36.45765039,216.84,216.75,1.6441]
[1734362227968,36.45765039,216.93,216.76,0.69183602]
[1734362228135,36.45765039,216.95,216.8,20.0]
[1734362228337,0.5644748,216.96,216.85,6.2087]
[1734362228641,0.5644748,216.96,216.85,6.90014112]
[1734362228853,36.45765039,216.95,216.85,6.2087]
[1734362229034,36.45765039,216.94,216.85,6.2087]
[1734362229234,36.45765039,216.95,216.85,6.2087]
[1734362229456,0.5644748,216.96,216.85,6.2087]
[1734362229457,36.45765039,216.91,216.85,6.2087]
[1734362229662,36.45765039,216.89,216.85,6.2087]
[1734362229843,36.45765039,216.9,216.85,6.2087]
[1734362230040,36.45765039,216.91,216.85,6.2087]
[1734362230284,36.45765039,216.9,216.85,6.2087]
[1734362230487,36.45765039,216.92,216.85,6.2087]
[1734362230694,36.45765039,216.94,216.85,6.2087]
[1734362230895,0.5644748,216.96,216.85,6.2087]
[1734362230896,36.45765039,216.95,216.85,6.2087]
[1734362231399,36.45765039,216.94,216.85,6.2087]
[1734362231688,36.45765039,216.93,216.85,6.2087]
[1734362232257,36.45765039,216.9,216.85,6.2087]
[1734362232580,36.45765039,216.89,216.85,6.2087]
[1734362232985,36.45765039,216.9,216.85,6.2087]
[1734362233484,36.45765039,216.91,216.85,6.2087]
[1734362233682,20.0,216.9,216.85,6.2087]
[1734362233896,36.45765039,216.94,216.85,6.2087]
[1734362234191,0.5644748,216.96,216.85,6.2087]
[1734362234192,36.45765039,216.95,216.85,6.2087]
[1734362234489,0.5644748,216.96,216.85,6.2087]
[1734362235626,0.5644748,216.96,216.85,142.9087]
[1734362235892,0.5644748,216.96,216.92,36.40534549]
[1734362236280,0.5644748,216.96,216.92,22.40334915]
[1734362236799,0.5644748,216.96,216.91,22.40334915]
[1734362237165,22.96782395,216.96,216.89,22.40334915]
[1734362237898,22.96782395,216.96,216.9,22.40334915]
[1734362238570,22.40334915,216.95,216.88,22.40334915]
[1734362238776,0.5644748,216.96,216.9,22.40334915]
[1734362239982,0.5644748,216.96,216.93,22.40334915]
[1734362240667,0.5644748,216.96,216.94,22.40334915]
[1734362240869,0.5644748,216.96,216.95,22.40334915]
[1734362241197,0.5644748,216.96,216.95,28.42964915]
[1734362243167,0.5644748,216.96,216.95,165.12964915]
[1734362243402,22.40334915,217.11,216.99,20.0]
[1734362243571,22.40334915,217.13,217.06,22.40334915]
[1734362243997,22.40334915,217.11,217.04,22.40334915]
[1734362244299,22.40334915,217.1,217.03,22.40334915]
[1734362244501,22.40334915,217.11,217.04,22.40334915]
[1734362244801,22.40334915,217.07,217.0,22.40334915]
[1734362245014,22.40334915,217.08,217.01,22.40334915]
[1734362245313,22.40334915,217.08,217.02,22.40334915]
[1734362245514,22.40334915,217.08,217.01,22.40334915]
[1734362245727,22.40334915,217.06,216.99,22.40334915]
[1734362245890,22.40334915,217.06,216.97,1.6603]
[1734362245891,22.40334915,217.04,216.97,24.06364915]
[1734362246090,22.40334915,217.04,216.95,6.0263]
[1734362246091,22.40334915,217.03,216.96,22.40334915]
[1734362246484,22.40334915,217.04,216.97,22.40334915]
[1734362246931,22.40334915,217.06,217.0,22.40334915]
[1734362247103,22.40334915,217.05,216.98,22.40334915]
[1734362247293,22.40334915,217.04,216.97,22.40334915]
[1734362247491,22.40334915,217.03,216.96,22.40334915]
[1734362247711,22.40334915,217.05,216.99,22.40334915]
[1734362247939,22.40334915,217.07,217.0,22.40334915]
[1734362248093,22.40334915,217.06,216.99,22.40334915]
[1734362248614,22.40334915,217.1,217.03,22.40334915]
[1734362248923,22.40334915,217.13,217.06,22.40334915]
[1734362249219,22.40334915,217.12,217.05,22.40334915]
[1734362249588,22.40334915,217.11,217.04,22.40334915]
[1734362249889,22.40334915,217.12,217.05,22.40334915]
[1734362250204,22.40334915,217.11,217.04,22.40334915]
[1734362250609,22.40334915,217.12,217.05,22.40334915]
[1734362250815,22.40334915,217.1,217.03,22.40334915]
[1734362251108,22.37607286,217.12,216.99,0.69099484]
[1734362251828,22.37607286,217.1,216.99,0.69099484]
[1734362252026,23.776884,217.15,216.98,156.7]
[1734362252027,22.37607286,217.09,216.98,156.7]
[1734362252227,22.37607286,217.14,216.95,6.0263]
[1734362252228,22.37607286,217.05,216.95,6.0263]
[1734362252713,22.37607286,217.07,216.95,6.0263]
[1734362252928,22.37607286,217.07,216.96,0.69114284]
[1734362253313,22.37607286,217.09,216.97,23.776884]
[1734362253522,22.37607286,217.12,217.01,43.776884]
[1734362253701,22.37607286,217.13,217.02,0.69086154]
[1734362253900,22.37607286,217.12,217.02,0.69086154]
[1734362254095,22.37607286,217.14,217.04,6.2938]
[1734362254301,22.37607286,217.15,217.04,8.51702719]
[1734362254813,22.37607286,217.14,217.04,8.51702719]
[1734362255312,22.37607286,217.13,217.04,8.51702719]
[1734362255729,22.37607286,217.12,217.04,8.51702719]
[1734362256029,22.37607286,217.13,217.04,8.51702719]
[1734362258035,20.5644748,217.18,217.04,7.8262]
[1734362258036,22.37607286,217.11,217.04,7.8262]
[1734362258207,22.37607286,217.06,217.04,6.2938]
[1734362258807,22.37607286,217.07,217.04,6.2938]
[1734362259043,22.37607286,217.06,217.04,6.2938]
[1734362259215,22.37607286,217.05,216.95,6.0902]
[1734362259400,22.37607286,217.03,216.95,6.0902]
[1734362259599,22.37607286,217.04,216.95,6.0902]
[1734362260358,22.37607286,217.02,216.95,6.0902]
[1734362260547,22.37607286,217.03,216.95,6.0902]
[1734362260862,23.776884,217.11,216.95,6.0902]
[1734362260863,22.37607286,217.04,216.95,6.0902]
[1734362261044,22.37607286,217.05,216.96,0.69114098]
[1734362261240,22.37607286,217.06,216.96,0.69114098]
[1734362261443,22.37607286,217.08,216.99,20.0]
[1734362261651,22.37607286,217.09,216.99,20.69099722]
[1734362262157,22.37607286,217.11,217.03,20.0]
[1734362262362,22.37607286,217.12,217.03,20.0]
[1734362262536,0.5644748,217.18,217.05,6.3929]
[1734362262537,22.37607286,217.11,217.05,6.3929]
[1734362262928,22.37607286,217.09,217.05,6.3929]
[1734362263563,22.37607286,217.08,217.05,6.3929]
[1734362263865,22.37607286,217.06,216.99,6.029]
[1734362264101,22.37607286,217.05,216.99,6.029]
[1734362264235,22.37607286,217.07,216.99,6.029]
[1734362264434,22.37607286,217.11,217.0,0.6910193]
[1734362264745,22.37607286,217.12,217.0,137.3910193]
[1734362264937,22.37607286,217.12,217.0,136.7]
[1734362265136,22.37607286,217.13,217.03,156.7]
[1734362265370,22.37607286,217.15,217.04,0.69082897]
[1734362265534,22.37607286,217.14,217.04,0.69082897]
[1734362265934,22.37607286,217.13,217.04,0.69082897]
[1734362266147,22.37607286,217.14,217.04,0.69082897]
[1734362266555,22.37607286,217.13,217.04,0.69082897]
[1734362266942,22.37607286,217.12,217.03,156.7]
[1734362268559,22.37607286,217.11,216.99,142.729]
[1734362268773,22.37607286,217.12,217.02,136.7]
[1734362269284,22.37607286,217.13,217.03,0.69091319]
[1734362269762,0.5644748,217.18,217.08,1.631]
[1734362269961,0.5644748,217.18,217.09,0.69067706]
[1734362270348,0.5644748,217.18,217.09,137.39067706]
[1734362270349,22.94054766,217.18,217.09,137.39067706]
[1734362270571,0.5644748,217.18,217.09,136.7]
[1734362271632,0.5644748,217.18,217.1,23.776884]
[1734362271780,0.5644748,217.18,217.1,24.46751942]
[1734362273163,0.5644748,217.18,217.11,6.394]
[1734362273363,0.5644748,217.18,217.12,0.6905799]
[1734362273585,0.5644748,217.18,217.13,23.776884]
[1734362273783,0.5644748,217.18,217.15,23.776884]
[1734362273988,0.5644748,217.18,217.16,0.69041775]
[1734362274162,0.5644748,217.18,217.16,20.69041775]
[1734362274779,0.5644748,217.18,217.17,160.476884]
[1734362275158,22.37607286,217.31,217.19,23.776884]
[1734362275400,18.384918,217.33,217.23,23.776884]
[1734362275601,22.37607286,217.37,217.25,23.776884]
[1734362275806,22.37607286,217.37,217.27,23.776884]
[1734362275975,22.37607286,217.34,217.26,0.69008309]
[1734362276176,22.37607286,217.34,217.27,20.0]
[1734362276876,22.37607286,217.35,217.27,20.0]
[1734362277182,22.37607286,217.29,217.24,6.5782]
[1734362277390,22.37607286,217.28,217.24,6.5782]
[1734362277594,22.37607286,217.27,217.18,7.6988]
[1734362277803,22.37607286,217.26,217.21,20.0]
[1734362278109,22.37607286,217.3,217.21,20.0]
[1734362278269,22.37607286,217.31,217.22,20.0]
[1734362279611,22.37607286,217.3,217.23,20.0]
[1734362279778,22.37607286,217.27,217.21,20.0]
[1734362280399,22.37607286,217.31,217.21,156.7]
[1734362280587,22.37607286,217.32,217.22,20.0]
[1734362280796,22.37607286,217.29,217.22,20.0]
[1734362280987,22.37607286,217.32,217.21,20.0]
[1734362281189,22.37607286,217.32,217.22,0.69030465]
[1734362281391,22.37607286,217.3,217.21,20.0]
[1734362281907,22.37607286,217.33,217.22,137.3903291]
[1734362282213,22.37607286,217.33,217.22,136.7]
[1734362282587,20.5644748,217.39,217.22,136.7]
[1734362282804,22.37607286,217.36,217.26,20.0]
[1734362283030,22.37607286,217.35,217.26,20.0]
[1734362283235,22.37607286,217.35,217.27,20.0]
[1734362283405,22.37607286,217.36,217.27,20.0]
[1734362283738,22.37607286,217.38,217.28,6.229]
[1734362283941,22.37607286,217.38,217.28,6.91911643]
[1734362284231,22.94054766,217.39,217.28,6.91911643]
[1734362284446,22.37607286,217.37,217.28,6.91911643]
[1734362285537,22.37607286,217.38,217.28,6.91911643]
[1734362285706,22.94054766,217.39,217.29,1.5978]
[1734362286036,0.5644748,217.39,217.3,23.776884]
[1734362286213,0.5644748,217.39,217.3,24.46695996]
[1734362286713,0.5644748,217.39,217.29,138.2978]
[1734362286714,22.37607286,217.37,217.29,138.2978]
[1734362286910,22.37607286,217.37,217.29,1.5978]
[1734362287108,22.94054766,217.39,217.29,1.5978]
[1734362287433,22.37607286,217.38,217.29,1.5978]
[1734362287597,22.37607286,217.36,217.29,1.5978]
[1734362287800,22.37607286,217.35,217.29,1.5978]
[1734362288137,22.37607286,217.35,217.28,6.229]
[1734362288440,22.37607286,217.34,217.28,6.229]
[1734362289003,22.37607286,217.36,217.28,6.229]
[1734362289419,22.37607286,217.37,217.28,6.229]
[1734362289817,22.37607286,217.38,217.28,6.229]
[1734362290018,22.37607286,217.36,217.28,6.229]
[1734362290215,22.37607286,217.35,217.28,6.229]
[1734362290818,22.37607286,217.34,217.28,6.229]
[1734362291041,22.37607286,217.33,217.28,6.229]
[1734362291226,22.37607286,217.31,217.28,6.229]
[1734362291731,22.37607286,217.3,217.28,6.229]
[1734362291931,22.37607286,217.31,217.28,6.229]
[1734362292137,22.37607286,217.32,217.24,1.5454]
[1734362292526,22.37607286,217.31,217.24,1.5454]
[1734362292912,22.37607286,217.35,217.25,0.69030345]
[1734362293111,0.5644748,217.39,217.25,0.69030345]
[1734362293112,22.37607286,217.34,217.25,0.69030345]
[1734362293519,22.37607286,217.38,217.27,20.0]
[1734362293719,22.37607286,217.38,217.28,0.69008472]
[1734362293936,22.37607286,217.37,217.28,0.69008472]
[1734362294319,22.37607286,217.36,217.27,20.0]
[1734362294724,22.37607286,217.36,217.24,138.2454]
[1734362294725,22.37607286,217.33,217.24,138.2454]
[1734362295541,22.37607286,217.34,217.24,138.2454]
[1734362295720,0.5644748,217.39,217.25,0.69024758]
[1734362295721,22.37607286,217.35,217.25,0.69024758]
[1734362296255,22.37607286,217.34,217.25,0.6901952]
[1734362296463,22.37607286,217.36,217.25,0.6901952]
[1734362296949,22.37607286,217.36,217.26,20.0]
[1734362297115,22.37607286,217.34,217.25,0.6901952]
[1734362297317,22.37607286,217.34,217.24,1.5454]
[1734362297534,22.37607286,217.32,217.24,1.5454]
[1734362297763,22.37607286,217.33,217.24,1.5454]
[1734362298285,22.37607286,217.31,217.24,1.5454]
[1734362298461,22.37607286,217.33,217.24,1.5454]
[1734362298793,22.37607286,217.36,217.24,1.5454]
[1734362298951,22.37607286,217.38,217.25,0.6902807]
[1734362299662,22.37607286,217.36,217.25,0.6902807]
[1734362299863,22.37607286,217.35,217.25,0.6902807]
[1734362300749,22.94054766,217.39,217.25,0.6902807]
[1734362301249,22.37607286,217.37,217.25,0.6902807]
[1734362302569,22.37607286,217.36,217.25,0.6902807]
[1734362303075,22.37607286,217.36,217.25,137.3902807]
[1734362303282,22.37607286,217.36,217.25,136.7]
[1734362303483,22.37607286,217.36,217.26,0.6902023]
[1734362303843,22.37607286,217.37,217.26,0.6902023]
[1734362304079,22.37607286,217.38,217.26,0.6902023]
[1734362304385,13.95059294,217.38,217.26,0.6902023]
[1734362304942,13.95059294,217.36,217.26,0.6902023]
[1734362305147,13.95059294,217.32,217.24,1.5454]
[1734362305376,13.95059294,217.3,217.24,1.5454]
[1734362306145,13.95059294,217.29,217.23,6.1103]
[1734362306388,13.95059294,217.27,217.23,6.1103]
[1734362307050,13.95059294,217.25,217.19,1.6347]
[1734362307254,13.95059294,217.24,217.19,1.6347]
[1734362307480,13.95059294,217.25,217.19,1.6347]
[1734362308045,22.34704054,217.25,217.19,1.6347]
[1734362308486,22.34704054,217.25,217.17,6.3963]
[1734362308661,22.34704054,217.24,217.17,6.3963]
[1734362309002,22.34704054,217.23,217.17,6.3963]
[1734362309478,22.34704054,217.2,217.17,6.3963]
[1734362309853,22.34704054,217.22,217.17,6.3963]
[1734362310151,22.34704054,217.27,217.17,6.3963]
[1734362310355,22.34704054,217.27,217.17,7.086745]
[1734362311165,22.34704054,217.25,217.17,7.086745]
[1734362311370,22.34704054,217.23,217.17,6.3963]
[1734362311710,22.34704054,217.24,217.17,6.3963]
[1734362312589,22.34704054,217.23,217.17,6.3963]
[1734362312767,22.34704054,217.25,217.17,6.3963]
[1734362313177,22.34704054,217.24,217.17,6.3963]
[1734362313354,22.34704054,217.23,217.17,6.3963]
[1734362313552,22.34704054,217.22,217.17,6.3963]
[1734362313763,22.34704054,217.24,217.17,6.3963]
[1734362314072,22.34704054,217.22,217.17,6.3963]
[1734362314392,22.34704054,217.21,217.17,6.3963]
[1734362315687,22.34704054,217.21,217.13,1.6056]
[1734362315688,22.34704054,217.19,217.13,1.6056]
[1734362315887,22.34704054,217.15,217.12,6.2939]
[1734362317012,22.34704054,217.17,217.12,6.2939]
[1734362317881,22.34704054,217.14,217.12,6.2939]
[1734362318082,22.34704054,217.13,217.08,1.5798]
[1734362318718,22.34704054,217.1,217.07,6.639]
[1734362319011,22.34704054,217.1,217.02,1.6369]
[1734362319012,22.34704054,217.08,217.02,8.2759]
[1734362319232,22.34704054,217.14,217.02,6.639]
[1734362319233,22.34704054,217.06,217.02,6.639]
[1734362319390,22.34704054,217.14,217.02,6.639]
[1734362319391,22.34704054,217.05,217.02,6.639]
[1734362319920,22.34704054,217.06,217.02,6.639]
[1734362320284,22.34704054,217.14,217.02,6.639]
[1734362320285,22.34704054,217.07,217.02,6.639]
[1734362320521,22.34704054,217.08,217.02,6.639]
[1734362321306,22.34704054,217.06,217.02,6.639]
[1734362321508,22.34704054,217.07,217.02,6.639]
[1734362322912,22.34704054,217.08,217.02,6.639]
[1734362323694,22.34704054,217.1,217.02,6.639]
[1734362323987,22.34704054,217.08,217.02,6.639]
[1734362325012,22.34704054,217.12,217.02,6.639]
[1734362325218,22.34704054,217.12,217.02,7.32989872]
[1734362325394,22.34704054,217.11,217.02,7.32989872]
[1734362326610,22.34704054,217.09,217.02,6.639]
[1734362326999,22.34704054,217.08,217.02,6.639]
[1734362327193,22.34704054,217.06,217.02,6.639]
[1734362328041,22.34704054,217.05,217.02,6.639]
[1734362328234,22.34704054,217.04,217.02,6.639]
[1734362328416,22.34704054,217.04,216.96,1.6369]
[1734362328618,22.34704054,217.04,216.97,6.1891]
[1734362328806,22.34704054,217.02,216.97,6.1891]
[1734362329127,22.34704054,217.01,216.97,6.1891]
[1734362330543,22.34704054,217.02,216.97,6.1891]
[1734362331604,22.34704054,217.04,216.97,6.1891]
[1734362331854,22.34704054,217.07,216.97,6.88022645]
[1734362332061,13.98993653,217.07,216.97,6.88022645]
[1734362332271,13.98993653,217.04,216.97,6.1891]
[1734362332538,13.98993653,217.05,216.97,6.1891]
[1734362332961,13.98993653,217.04,216.97,6.1891]
[1734362333262,13.98993653,217.03,216.97,6.1891]
[1734362333772,13.98993653,217.04,216.97,6.1891]
[1734362334452,13.98993653,217.03,216.97,6.1891]
[1734362335336,13.98993653,217.03,216.93,0.69112067]
[1734362335751,13.98993653,217.03,216.95,20.0]
[1734362336034,13.98993653,217.04,216.95,20.0]
[1734362336931,13.98993653,217.03,216.93,0.69112067]
[1734362337134,13.98993653,216.97,216.92,6.4478]
[1734362337337,13.98993653,216.95,216.92,6.4478]
[1734362338140,13.98993653,216.93,216.87,6.4334]
[1734362338447,13.98993653,216.94,216.87,6.4334]
[1734362339502,13.98993653,216.93,216.87,6.4334]
[1734362340176,23.776884,217.03,216.87,7.12491134]
[1734362340374,13.98993653,217.04,216.9,20.0]
[1734362340584,13.98993653,217.05,216.95,20.0]
[1734362340789,13.98993653,217.05,216.95,20.69114764]
[1734362341070,13.98993653,217.06,216.96,6.4753]
[1734362341399,1.6118,217.1,216.96,6.4753]
[1734362341400,13.98993653,217.08,216.97,0.69108279]
[1734362341574,13.98993653,217.08,216.97,2.21588279]
[1734362342001,13.98993653,217.07,216.97,2.21588279]
[1734362342504,13.98993653,217.06,216.97,1.5248]
[1734362343008,13.98993653,217.07,216.97,1.5248]
[1734362343385,13.98993653,217.06,216.97,1.5248]
[1734362343696,13.98993653,217.07,216.97,1.5248]
[1734362343868,13.98993653,217.08,216.97,1.5248]
[1734362344070,13.98993653,217.13,217.01,20.0]
[1734362344402,22.37320517,217.13,217.01,20.6909504]
[1734362344766,22.37320517,217.11,217.01,20.6909504]
[1734362345066,22.37320517,217.11,217.01,20.0]
[1734362346111,20.0,217.17,217.02,0.69098121]
[1734362346266,22.37320517,217.15,217.03,6.4512]
[1734362346812,22.37320517,217.17,217.07,20.0]
[1734362347018,22.37320517,217.2,217.08,0.69074275]
[1734362348815,6.1815,217.3,217.08,0.69074275]
[1734362348816,22.37320517,217.25,217.12,20.0]
[1734362348995,22.37320517,217.26,217.13,24.46741144]
[1734362349200,18.389059,217.25,217.17,6.5322]
[1734362349386,22.37320517,217.32,217.2,20.0]
[1734362349592,22.37320517,217.33,217.21,0.69033552]
[1734362349786,1.5813,217.37,217.21,0.69033552]
[1734362349787,40.75760817,217.32,217.21,0.69033552]
[1734362350003,22.37320517,217.27,217.17,143.2322]
[1734362350185,22.37320517,217.26,217.17,6.5322]
[1734362350524,22.37320517,217.27,217.17,6.5322]
[1734362350681,18.384403,217.32,217.17,6.5322]
[1734362350682,22.37320517,217.28,217.17,6.5322]
[1734362351083,22.37320517,217.28,217.17,7.22263691]
[1734362352123,22.37320517,217.3,217.17,7.22263691]
[1734362352292,22.37320517,217.31,217.21,20.0]
[1734362352493,22.37320517,217.31,217.21,20.69033625]
[1734362352686,0.5644748,217.39,217.22,160.476884]
[1734362352907,22.37320517,217.36,217.25,23.776884]
[1734362353216,22.37320517,217.35,217.26,0.69016352]
[1734362353427,22.37320517,217.33,217.24,6.6056]
[1734362353718,18.380145,217.36,217.25,0.69023984]
[1734362353885,22.37320517,217.34,217.24,6.6056]
[1734362354088,22.37320517,217.32,217.24,6.6056]
[1734362354819,22.37320517,217.31,217.24,6.6056]
[1734362355043,18.382163,217.36,217.24,6.6056]
[1734362355044,22.37320517,217.3,217.24,6.6056]
[1734362355210,22.37320517,217.28,217.24,6.6056]
[1734362355633,22.37320517,217.29,217.24,6.6056]
[1734362355836,22.37320517,217.3,217.24,6.6056]
[1734362356041,22.37320517,217.29,217.24,6.6056]
[1734362356209,22.37320517,217.32,217.24,6.6056]
[1734362356412,22.37320517,217.33,217.24,6.6056]
[1734362357044,22.37320517,217.34,217.25,0.6903018]
[1734362357555,22.37320517,217.34,217.24,6.6056]
[1734362357849,22.37320517,217.34,217.25,0.6902304]
[1734362358049,22.37320517,217.34,217.24,6.6056]
[1734362358213,22.37320517,217.33,217.24,6.6056]
[1734362358551,18.382163,217.36,217.24,6.6056]
[1734362358552,22.37320517,217.34,217.25,0.69024734]
[1734362358847,22.37320517,217.37,217.27,20.0]
[1734362359014,22.37320517,217.35,217.27,20.0]
[1734362359345,22.37320517,217.34,217.27,20.0]
[1734362359717,22.37320517,217.35,217.27,20.0]
[1734362359948,22.37320517,217.34,217.27,20.0]
[1734362360459,22.37320517,217.33,217.27,20.0]
[1734362360925,22.37320517,217.35,217.27,20.0]
[1734362361123,22.37320517,217.36,217.27,20.0]
[1734362361316,22.37320517,217.36,217.27,20.69020225]
[1734362361515,22.37320517,217.34,217.27,20.0]
[1734362361847,22.37320517,217.32,217.27,20.0]
[1734362362065,22.37320517,217.33,217.27,20.0]
[1734362362276,22.37320517,217.36,217.27,20.0]
[1734362362634,22.37320517,217.37,217.28,0.69008954]
[1734362362890,22.37320517,217.38,217.28,0.69008954]
[1734362363168,22.37320517,217.36,217.27,20.0]
[1734362363334,22.37320517,217.35,217.27,20.0]
[1734362363535,22.37320517,217.32,217.27,20.0]
[1734362363736,22.37320517,217.31,217.26,1.6084]
[1734362363964,22.37320517,217.28,217.24,6.6056]
[1734362364943,22.37320517,217.36,217.24,6.6056]
[1734362364944,22.37320517,217.26,217.24,6.6056]
[1734362365278,22.37320517,217.25,217.18,6.0101]
[1734362365439,22.37320517,217.23,217.18,6.0101]
[1734362365958,22.37320517,217.22,217.18,6.0101]
[1734362366176,22.37320517,217.23,217.18,6.0101]
[1734362366542,22.37320517,217.25,217.18,6.0101]
[1734362367177,22.37320517,217.24,217.18,6.0101]
[1734362367685,22.37320517,217.22,217.18,6.0101]
[1734362368182,22.37320517,217.23,217.18,6.0101]
[1734362368373,22.37320517,217.22,217.18,6.0101]
[1734362369054,22.37320517,217.21,217.18,6.0101]
[1734362369247,2.788347,217.31,217.18,6.0101]
[1734362369248,22.37320517,217.2,217.18,6.0101]
[1734362369467,22.37320517,217.21,217.18,6.0101]
[1734362369871,22.37320517,217.23,217.18,6.0101]
[1734362370587,22.37320517,217.22,217.18,6.0101]
[1734362371110,22.37320517,217.23,217.18,6.0101]
[1734362372515,22.37320517,217.23,217.14,1.6532]
[1734362372516,22.37320517,217.19,217.14,1.6532]
[1734362372884,22.37320517,217.19,217.13,6.2166]
[1734362374207,22.37320517,217.25,217.08,6.1315]
[1734362374208,22.37320517,217.14,217.08,6.1315]
[1734362374513,22.37320517,217.11,217.04,1.5219]
[1734362374813,22.37320517,217.19,217.05,0.69095294]
[1734362375108,22.37320517,217.22,217.06,6.2598]
[1734362375276,22.37320517,217.22,217.07,0.6906031]
[1734362375796,22.37320517,217.2,217.09,20.0]
[1734362375988,22.37320517,217.2,217.09,157.39066389]
[1734362376303,22.37320517,217.19,217.1,23.776884]
[1734362376508,22.37320517,217.17,217.09,156.7]
[1734362376880,22.37320517,217.17,217.09,20.0]
[1734362377113,22.37320517,217.2,217.1,0.69076102]
[1734362377906,22.37320517,217.19,217.1,0.69076102]
[1734362378112,22.37320517,217.18,217.1,20.0]
[1734362378506,22.37320517,217.19,217.1,20.0]
[1734362378703,22.37320517,217.17,217.09,20.0]
[1734362379318,20.0,217.27,217.11,29.886884]
[1734362379635,22.37320517,217.25,217.13,23.776884]
[1734362379851,22.37320517,217.25,217.12,2.29077195]
[1734362379852,22.37320517,217.22,217.12,1.6002]
[1734362380143,22.37320517,217.21,217.12,1.6002]
[1734362380510,22.37320517,217.22,217.12,2.29085818]
[1734362381243,22.37320517,217.2,217.12,1.6002]
[1734362381540,22.37320517,217.19,217.12,1.6002]
[1734362382036,22.37320517,217.18,217.12,1.6002]
[1734362382231,22.37320517,217.17,217.12,1.6002]
[1734362382426,22.37320517,217.21,217.12,1.6002]
[1734362382634,22.37320517,217.22,217.12,1.6002]
[1734362383327,22.37320517,217.2,217.12,1.6002]
[1734362383534,22.37320517,217.22,217.12,1.6002]
[1734362383911,22.37320517,217.21,217.12,1.6002]
[1734362385256,1.6243,217.3,217.14,20.0]
[1734362385423,22.37320517,217.27,217.16,20.0]
[1734362385621,22.37320517,217.29,217.18,6.5946]
[1734362385927,22.37320517,217.29,217.19,0.69038512]
[1734362386630,23.88040517,217.36,217.19,0.69038512]
[1734362386631,22.37320517,217.3,217.21,20.0]
[1734362387056,22.37320517,217.26,217.18,6.5946]
[1734362387253,22.37320517,217.25,217.18,6.5946]
[1734362387643,22.37320517,217.24,217.18,6.5946]